fUST/lending_fUST_20250221
["ID","MTS","AMOUNT","RATE_DAILY","PERIOD"]
[353825568,1740081041530,-500.0,0.00013698,2]
[353825570,1740081041539,-500.0,0.00013698,2]
[353825572,1740081041548,-500.0,0.00013698,2]
[353825574,1740081041557,-1152.68,0.00013698,2]
[353825576,1740081041567,-500.0,0.00013698,2]
[353825578,1740081041576,-500.0,0.00013698,2]
[353825580,1740081041585,-500.0,0.00013698,2]
[353825581,1740081041594,-500.0,0.00013698,2]
[353825583,1740081041604,-500.0,0.00013698,2]
[353825585,1740081041613,-1903.26,0.00013698,2]
[353825587,1740081041622,-500.0,0.00013698,2]
[353825589,1740081041631,-1903.26,0.00013698,2]
[353825591,1740081041642,-1903.26,0.00013698,2]
[353825593,1740081041651,-500.0,0.00013698,2]
[353825595,1740081041661,-1903.26,0.00013698,2]
[353825597,1740081041670,-1903.26,0.00013698,2]
[353825599,1740081041680,-1903.26,0.00013698,2]
[353825601,1740081041690,-1903.26,0.00013698,2]
[353825603,1740081041699,-1903.26,0.00013698,2]
[353825605,1740081041708,-500.0,0.00013698,2]
[353825607,1740081041717,-1903.26,0.00013698,2]
[353825609,1740081041727,-1903.26,0.00013698,2]
[353825611,1740081041736,-1903.26,0.00013698,2]
[353825613,1740081041745,-1903.26,0.00013698,2]
[353825615,1740081041754,-1903.26,0.00013698,2]
[353825617,1740081041763,-1903.26,0.00013698,2]
[353825619,1740081041772,-1903.26,0.00013698,2]
[353825621,1740081041782,-1376.24,0.00013698,2]
[353825623,1740081041791,-1741.58,0.00013698,2]
[353825625,1740081041800,-500.0,0.00013698,2]
[353825627,1740081041809,-500.0,0.00013698,2]
[353825629,1740081041818,-5313.9,0.00013698,2]
[353825631,1740081041827,-500.0,0.00013698,2]
[353825633,1740081041836,-500.0,0.00013698,2]
[353825635,1740081041845,-500.0,0.00013698,2]
[353825637,1740081041855,-500.0,0.00013698,2]
[353825639,1740081041864,-500.0,0.00013698,2]
[353825641,1740081041874,-500.0,0.00013698,2]
[353825643,1740081041883,-1545.04,0.00013698,2]
[353825645,1740081041893,-500.0,0.00013698,2]
[353825647,1740081041903,-500.0,0.00013698,2]
[353825649,1740081041912,-500.0,0.00013698,2]
[353825651,1740081041921,-500.0,0.00013698,2]
[353825653,1740081041931,-500.0,0.00013698,2]
[353825655,1740081041940,-500.0,0.00013698,2]
[353825658,1740081041949,-12473.25,0.00013698,2]
[353825659,1740081041960,-668.14,0.00013698,2]
[353825661,1740081041969,-500.0,0.00013698,2]
[353825663,1740081041979,-500.0,0.00013698,2]
[353825665,1740081041988,-500.0,0.00013698,2]
[353825667,1740081041997,-500.0,0.00013698,2]
[353825670,1740081042007,-1204.27,0.00013698,2]
[353825671,1740081042016,-1809.48,0.00013698,2]
[353825674,1740081042026,-500.0,0.00013698,2]
[353825675,1740081042035,-8422.45,0.00013698,2]
[353825677,1740081042044,-500.0,0.00013698,2]
[353825679,1740081042054,-536.89,0.00013698,2]
[353825681,1740081042063,-568.82,0.00013698,2]
[353825683,1740081042071,-500.0,0.00013698,2]
[353825685,1740081042080,-500.0,0.00013698,2]
[353825687,1740081042090,-2793.5,0.00013698,2]
[353825689,1740081042099,-500.0,0.00013698,2]
[353825691,1740081042108,-3282.07,0.00013698,2]
[353825694,1740081042119,-500.0,0.00013698,2]
[353825696,1740081042130,-500.0,0.00013698,2]
[353825698,1740081042140,-500.0,0.00013698,2]
[353825700,1740081042150,-1891.5,0.00013698,2]
[353825702,1740081042159,-500.0,0.00013698,2]
[353825704,1740081042168,-500.0,0.00013699,2]
[353825706,1740081042177,-500.0,0.00013699,2]
[353825708,1740081042186,-500.0,0.00013699,2]
[353825710,1740081042195,-547.83745685,0.00013699,2]
[353825712,1740081042205,-744.07961046,0.00013703,2]
[353825714,1740081042214,-500.0,0.00013773,2]
[353825716,1740081042224,-500.0,0.00013773,2]
[353825718,1740081042233,-1903.26,0.00013778,2]
[353825720,1740081042242,-1903.26,0.00013778,2]
[353825722,1740081042251,-278.43632656,0.00013779,2]
[353825724,1740081042261,-500.0,0.00013779,2]
[353825726,1740081042275,-500.0,0.00013779,2]
[353825728,1740081042285,-500.0,0.00013779,2]
[353825730,1740081042294,-500.0,0.00013779,2]
[353825732,1740081042303,-611.263025,0.00013779,2]
[353825734,1740081042314,-2984.23,0.00013779,2]
[353825736,1740081042323,-2984.23,0.00013779,2]
[353825738,1740081042332,-2984.23,0.00013779,2]
[353825740,1740081042341,-2984.23,0.00013779,2]
[353825742,1740081042352,-2984.23,0.00013779,2]
[353825744,1740081042361,-2984.23,0.00013779,2]
[353825746,1740081042370,-2984.23,0.00013779,2]
[353825748,1740081042380,-2984.23,0.00013779,2]
[353825750,1740081042389,-2984.23,0.00013779,2]
[353825752,1740081042399,-2984.23,0.00013779,2]
[353825754,1740081042408,-2984.23,0.00013779,2]
[353825756,1740081042417,-2984.25564753,0.00013779,2]
[353825758,1740081042426,-1903.26,0.00013779,2]
[353825760,1740081042436,-1903.26,0.00013779,2]
[353825762,1740081042445,-1903.26,0.00013779,2]
[353825764,1740081042455,-1903.26,0.00013779,2]
[353825766,1740081042464,-1903.26,0.00013779,2]
[353825768,1740081042473,-1903.26,0.00013779,2]
[353825770,1740081042482,-1903.32,0.00013779,2]
[353825771,1740081042491,-500.0,0.0001378,2]
[353825772,1740081042500,-500.0,0.0001378,2]
[353825773,1740081042509,-500.0,0.0001378,2]
[353825774,1740081042519,-500.0,0.0001378,2]
[353825775,1740081042527,-500.0,0.0001378,2]
[353825776,1740081042537,-500.0,0.0001378,2]
[353825777,1740081042546,-500.0,0.0001378,2]
[353825778,1740081042555,-500.0,0.0001378,2]
[353825779,1740081042564,-500.0,0.0001378,2]
[353825780,1740081042573,-500.0,0.0001378,2]
[353825781,1740081042582,-500.0,0.0001378,2]
[353825782,1740081042592,-500.0,0.0001378,2]
[353825783,1740081042601,-500.0,0.0001378,2]
[353825784,1740081042612,-500.0,0.0001378,2]
[353825785,1740081042621,-500.0,0.0001378,2]
[353825786,1740081042631,-500.0,0.0001378,2]
[353825787,1740081042640,-500.00569627,0.0001378,2]
[353825789,1740081042649,-1193.65,0.0001378,2]
[353825791,1740081042658,-563.359996,0.0001378,2]
[353825793,1740081042667,-358.75927071,0.0001378,2]
[353825795,1740081042677,-500.0,0.0001378,2]
[353825796,1740081042685,-500.0,0.0001378,2]
[353825798,1740081042695,-500.0,0.0001378,2]
[353825800,1740081042704,-500.0,0.0001378,2]
[353825803,1740081042717,-584.91,0.0001378,2]
[353825805,1740081042726,-500.0,0.0001378,2]
[353825807,1740081042735,-500.0,0.0001378,2]
[353825809,1740081042744,-500.0,0.0001378,2]
[353825811,1740081042753,-500.0,0.0001378,2]
[353825813,1740081042762,-500.0,0.0001378,2]
[353825815,1740081042772,-562.22,0.0001378,2]
[353825817,1740081042781,-500.0,0.0001378,2]
[353825819,1740081042790,-500.0,0.0001378,2]
[353825821,1740081042799,-500.0,0.0001378,2]
[353825823,1740081042808,-726.14,0.0001378,2]
[353825825,1740081042817,-501.8015462,0.0001378,2]
[353825827,1740081042826,-500.0,0.0001378,2]
[353825829,1740081042836,-500.0,0.0001378,2]
[353825831,1740081042848,-500.0,0.0001378,2]
[353825833,1740081042857,-500.0,0.0001378,2]
[353825835,1740081042866,-500.0,0.0001378,2]
[353825837,1740081042875,-500.0,0.0001378,2]
[353825851,1740081042991,-500.0,0.0001378,2]
[353825853,1740081043001,-500.0,0.0001378,2]
[353825855,1740081043010,-500.0,0.0001378,2]
[353825857,1740081043019,-500.0,0.0001378,2]
[353825859,1740081043029,-500.0,0.0001378,2]
[353825861,1740081043038,-500.0,0.0001378,2]
[353825862,1740081043047,-500.0,0.0001378,2]
[353825863,1740081043057,-854.98,0.0001378,2]
[353825864,1740081043066,-461.56442783,0.0001378,2]
[353825866,1740081043075,-500.0,0.0001378,2]
[353825868,1740081043085,-518.04,0.0001378,2]
[353825870,1740081043094,-500.0,0.0001378,2]
[353825872,1740081043103,-500.0,0.0001378,2]
[353825873,1740081043112,-500.0,0.0001378,2]
[353825874,1740081043121,-500.0,0.0001378,2]
[353825875,1740081043130,-500.0,0.0001378,2]
[353825876,1740081043139,-796.66,0.0001378,2]
[353825877,1740081043148,-500.0,0.0001378,2]
[353825879,1740081043157,-576.57,0.0001378,2]
[353825880,1740081043166,-500.0,0.0001378,2]
[353825881,1740081043175,-500.0,0.0001378,2]
[353825882,1740081043184,-500.0,0.0001378,2]
[353825883,1740081043193,-520.56,0.0001378,2]
[353825884,1740081043202,-500.0,0.0001378,2]
[353825885,1740081043212,-500.0,0.0001378,2]
[353825886,1740081043221,-500.0,0.0001378,2]
[353825887,1740081043231,-500.0,0.0001378,2]
[353825888,1740081043244,-500.0,0.0001378,2]
[353825889,1740081043253,-500.0,0.0001378,2]
[353825891,1740081043263,-500.0,0.0001378,2]
[353825893,1740081043276,-505.32613227,0.0001378,2]
[353825895,1740081043286,-500.0,0.0001378,2]
[353825896,1740081043295,-500.0,0.0001378,2]
[353825898,1740081043305,-855.71,0.0001378,2]
[353825900,1740081043315,-500.0,0.0001378,2]
[353825901,1740081043324,-500.0,0.0001378,2]
[353825902,1740081043333,-500.0,0.0001378,2]
[353825904,1740081043343,-500.0,0.0001378,2]
[353825906,1740081043354,-653.55,0.0001378,2]
[353825908,1740081043364,-500.0,0.0001378,2]
[353825910,1740081043374,-500.0,0.0001378,2]
[353825912,1740081043383,-500.0,0.0001378,2]
[353825914,1740081043392,-502.67069263,0.0001378,2]
[353825916,1740081043402,-500.0,0.0001378,2]
[353825918,1740081043411,-500.0,0.0001378,2]
[353825920,1740081043420,-500.0,0.0001378,2]
[353825922,1740081043429,-527.25,0.0001378,2]
[353825924,1740081043439,-500.0,0.0001378,2]
[353825926,1740081043448,-512.98125807,0.0001378,2]
[353825928,1740081043457,-526.08,0.0001378,2]
[353825930,1740081043467,-500.0,0.0001378,2]
[353825932,1740081043476,-500.0,0.0001378,2]
[353825934,1740081043487,-500.0,0.0001378,2]
[353825936,1740081043496,-500.0,0.0001378,2]
[353825938,1740081043506,-500.0,0.0001378,2]
[353825940,1740081043515,-500.0,0.0001378,2]
[353825942,1740081043524,-500.0,0.0001378,2]
[353825944,1740081043533,-500.0,0.0001378,2]
[353825946,1740081043542,-447.67448452,0.0001378,2]
[353825948,1740081043551,-500.0,0.0001378,2]
[353825950,1740081043561,-500.0,0.0001378,2]
[353825952,1740081043571,-500.0,0.0001378,2]
[353825954,1740081043580,-500.0,0.0001378,2]
[353825956,1740081043590,-500.0,0.0001378,2]
[353825958,1740081043599,-500.0,0.0001378,2]
[353825959,1740081043609,-500.0,0.0001378,2]
[353825960,1740081043619,-500.0,0.0001378,2]
[353825961,1740081043629,-500.0,0.0001378,2]
[353825962,1740081043639,-510.31211764,0.0001378,2]
[353825963,1740081043649,-500.0,0.0001378,2]
[353825964,1740081043658,-500.0,0.0001378,2]
[353825965,1740081043668,-500.0,0.0001378,2]
[353825966,1740081043677,-500.0,0.0001378,2]
[353825967,1740081043687,-500.0,0.0001378,2]
[353825968,1740081043697,-500.0,0.0001378,2]
[353825969,1740081043707,-500.0,0.0001378,2]
[353825970,1740081043717,-609.29778675,0.0001378,2]
[353825971,1740081043726,-500.0,0.0001378,2]
[353825972,1740081043736,-500.0,0.0001378,2]
[353825973,1740081043745,-500.0,0.0001378,2]
[353825974,1740081043755,-500.0,0.0001378,2]
[353825975,1740081043764,-500.0,0.0001378,2]
[353825976,1740081043773,-500.0,0.0001378,2]
[353825977,1740081043782,-500.0,0.0001378,2]
[353825978,1740081043794,-506.93085562,0.0001378,2]
[353825979,1740081043804,-651.0,0.0001378,2]
[353825980,1740081043813,-500.0,0.0001378,2]
[353825981,1740081043823,-500.0,0.0001378,2]
[353825982,1740081043833,-500.0,0.0001378,2]
[353825983,1740081043842,-500.0,0.0001378,2]
[353825984,1740081043852,-500.0,0.0001378,2]
[353825985,1740081043862,-593.64,0.0001378,2]
[353825986,1740081043871,-500.0,0.0001378,2]
[353825987,1740081043881,-512.26772139,0.0001378,2]
[353825988,1740081043890,-753.07,0.0001378,2]
[353825989,1740081043900,-563.01843799,0.0001378,2]
[353825990,1740081043909,-500.0,0.0001378,2]
[353825991,1740081043919,-272.41737401,0.0001378,2]
[353825992,1740081043929,-500.0,0.0001378,2]
[353825993,1740081043939,-13040.78,0.0001378,2]
[353825994,1740081043948,-1186.37,0.0001378,2]
[353825995,1740081043959,-34993.76,0.0001378,2]
[353825996,1740081043968,-500.0,0.0001378,2]
[353825997,1740081043978,-1017.86,0.0001378,2]
[353825998,1740081043988,-512.20471866,0.0001378,2]
[353825999,1740081043998,-500.0,0.0001378,2]
[353826000,1740081044008,-500.0,0.0001378,2]
[353826001,1740081044017,-500.0,0.0001378,2]
[353826002,1740081044026,-505.2447664,0.0001378,2]
[353826003,1740081044036,-2077.25,0.0001378,2]
[353826004,1740081044045,-963.85,0.0001378,2]
[353826005,1740081044055,-500.0,0.0001378,2]
[353826006,1740081044065,-630.850242,0.0001378,2]
[353826007,1740081044075,-2415.36,0.0001378,2]
[353826008,1740081044085,-1104.4,0.0001378,2]
[353826009,1740081044095,-500.0,0.0001378,2]
[353826010,1740081044105,-500.0,0.0001378,2]
[353826011,1740081044114,-928.84,0.0001378,2]
[353826012,1740081044124,-500.0,0.0001378,2]
[353826013,1740081044134,-500.0,0.0001378,2]
[353826014,1740081044145,-2659.11,0.0001378,2]
[353826015,1740081044155,-500.0,0.0001378,2]
[353826016,1740081044165,-500.0,0.0001378,2]
[353826017,1740081044175,-500.0,0.0001378,2]
[353826018,1740081044185,-5902.48,0.0001378,2]
[353826019,1740081044195,-893.57,0.0001378,2]
[353826020,1740081044205,-500.0,0.0001378,2]
[353826021,1740081044215,-500.0,0.0001378,2]
[353826022,1740081044224,-500.0,0.0001378,2]
[353826023,1740081044234,-500.0,0.0001378,2]
[353826024,1740081044244,-2976.46,0.0001378,2]
[353826025,1740081044253,-500.0,0.0001378,2]
[353826026,1740081044263,-500.0,0.0001378,2]
[353826027,1740081044275,-637.75,0.0001378,2]
[353826028,1740081044285,-500.0,0.0001378,2]
[353826029,1740081044295,-500.0,0.0001378,2]
[353826030,1740081044304,-500.0,0.0001378,2]
[353826031,1740081044315,-500.0,0.0001378,2]
[353826032,1740081044324,-3624.95,0.0001378,2]
[353826033,1740081044334,-500.0,0.0001378,2]
[353826034,1740081044344,-500.0,0.0001378,2]
[353826035,1740081044354,-507.62960379,0.0001378,2]
[353826036,1740081044363,-1955.2,0.0001378,2]
[353826037,1740081044372,-500.0,0.0001378,2]
[353826038,1740081044383,-507.31230826,0.0001378,2]
[353826039,1740081044394,-500.0,0.0001378,2]
[353826040,1740081044404,-500.0,0.0001378,2]
[353826041,1740081044414,-1867.16,0.0001378,2]
[353826042,1740081044424,-1429.61,0.0001378,2]
[353826043,1740081044434,-500.0,0.0001378,2]
[353826044,1740081044443,-500.0,0.0001378,2]
[353826045,1740081044453,-500.0,0.0001378,2]
[353826046,1740081044463,-500.0,0.0001378,2]
[353826047,1740081044473,-500.0,0.0001378,2]
[353826048,1740081044482,-500.0,0.0001378,2]
[353826049,1740081044492,-510.13484862,0.0001378,2]
[353826050,1740081044502,-500.0,0.0001378,2]
[353826051,1740081044512,-1152.68,0.0001378,2]
[353826052,1740081044522,-500.0,0.0001378,2]
[353826053,1740081044533,-500.0,0.0001378,2]
[353826054,1740081044543,-309.70583106,0.0001378,2]
[353826055,1740081044553,-505.62053682,0.0001378,2]
[353826056,1740081044563,-500.0,0.0001378,2]
[353826057,1740081044572,-500.0,0.0001378,2]
[353826058,1740081044582,-478.3062698,0.0001378,2]
[353826059,1740081044591,-500.0,0.0001378,2]
[353826060,1740081044601,-1376.24,0.0001378,2]
[353826061,1740081044611,-1741.58,0.0001378,2]
[353826062,1740081044620,-500.0,0.0001378,2]
[353826063,1740081044629,-500.0,0.0001378,2]
[353826064,1740081044639,-5313.9,0.0001378,2]
[353826065,1740081044649,-500.0,0.0001378,2]
[353826066,1740081044659,-500.0,0.0001378,2]
[353826067,1740081044669,-504.59412704,0.0001378,2]
[353826068,1740081044679,-211.09352973,0.0001378,2]
[353826069,1740081044690,-500.0,0.0001378,2]
[353826070,1740081044699,-500.0,0.0001378,2]
[353826071,1740081044709,-1545.04,0.0001378,2]
[353826072,1740081044718,-505.1561319,0.0001378,2]
[353826073,1740081044728,-500.0,0.0001378,2]
[353826074,1740081044738,-500.0,0.0001378,2]
[353826075,1740081044748,-500.0,0.0001378,2]
[353826076,1740081044758,-500.0,0.0001378,2]
[353826077,1740081044768,-507.41425606,0.0001378,2]
[353826078,1740081044777,-12473.25,0.0001378,2]
[353826079,1740081044787,-668.14,0.0001378,2]
[353826080,1740081044797,-500.0,0.0001378,2]
[353826081,1740081044807,-500.0,0.0001378,2]
[353826082,1740081044817,-1204.27,0.0001378,2]
[353826083,1740081044826,-1809.48,0.0001378,2]
[353826084,1740081044836,-500.0,0.0001378,2]
[353826085,1740081044846,-8422.45,0.0001378,2]
[353826086,1740081044855,-500.0,0.0001378,2]
[353826087,1740081044866,-536.89,0.0001378,2]
[353826088,1740081044876,-568.82,0.0001378,2]
[353826089,1740081044886,-2793.5,0.0001378,2]
[353826090,1740081044896,-500.0,0.0001378,2]
[353826091,1740081044906,-3282.07,0.0001378,2]
[353826092,1740081044915,-500.0,0.0001378,2]
[353826093,1740081044925,-500.0,0.0001378,2]
[353826094,1740081044936,-500.0,0.0001378,2]
[353826095,1740081044946,-1891.5,0.0001378,2]
[353826096,1740081044956,-300.0,0.000138,4]
[353826097,1740081044967,-744.07961046,0.00013803,2]
[353826098,1740081044977,-171.24060366,0.00013845,2]
[353826099,1740081044988,-171.24060366,0.00013845,2]
[353826100,1740081044998,-171.24060366,0.00013845,2]
[353826101,1740081045009,-171.24060366,0.00013845,2]
[353826102,1740081045019,-171.24060366,0.00013845,2]
[353826103,1740081045028,-171.24060366,0.00013845,2]
[353826104,1740081045038,-171.24060366,0.00013845,2]
[353826105,1740081045048,-171.24060366,0.00013845,2]
[353826106,1740081045058,-171.24060366,0.00013845,2]
[353826107,1740081045067,-171.24060366,0.00013845,2]
[353826108,1740081045077,-171.24060366,0.00013845,2]
[353826109,1740081045087,-171.24060366,0.00013845,2]
[353826110,1740081045096,-171.24060366,0.00013845,2]
[353826111,1740081045106,-171.24060366,0.00013845,2]
[353826112,1740081045116,-171.24060366,0.00013845,2]
[353826113,1740081045126,-171.24060366,0.00013845,2]
[353826114,1740081045137,-171.24060366,0.00013845,2]
[353826115,1740081045147,-171.24060366,0.00013845,2]
[353826116,1740081045158,-171.24060366,0.00013845,2]
[353826117,1740081045169,-171.24,0.00013845,2]
[353826118,1740081045179,-1125.78062594,0.00013845,2]
[353826119,1740081045188,-500.0,0.00013863,2]
[353826120,1740081045197,-500.0,0.00013863,2]
[353826121,1740081045208,-500.0,0.00013863,2]
[353826122,1740081045218,-500.0,0.00013863,2]
[353826123,1740081045229,-500.0,0.00013863,2]
[353826124,1740081045238,-500.0,0.00013863,2]
[353826125,1740081045247,-500.0,0.00013863,2]
[353826126,1740081045257,-500.0,0.00013863,2]
[353826127,1740081045267,-323.26680053,0.00013863,2]
[353826128,1740081045281,-500.0,0.00013863,2]
[353826129,1740081045291,-500.0,0.00013863,2]
[353826130,1740081045301,-500.0,0.00013863,2]
[353826131,1740081045312,-500.0,0.00013863,2]
[353826132,1740081045321,-500.0,0.00013863,2]
[353826133,1740081045330,-631.0206765,0.00013863,2]
[353826134,1740081045340,-500.0,0.00013863,2]
[353826135,1740081045351,-1193.65,0.00013863,2]
[353826136,1740081045362,-500.0,0.00013863,2]
[353826137,1740081045373,-500.0,0.00013863,2]
[353826138,1740081045383,-500.0,0.00013863,2]
[353826139,1740081045394,-584.91,0.00013863,2]
[353826141,1740081045405,-500.0,0.00013863,2]
[353826142,1740081045414,-500.0,0.00013863,2]
[353826143,1740081045423,-500.0,0.00013863,2]
[353826144,1740081045433,-500.0,0.00013863,2]
[353826145,1740081045444,-500.0,0.00013863,2]
[353826146,1740081045453,-562.22,0.00013863,2]
[353826147,1740081045464,-218.58435177,0.00013863,2]
[353826148,1740081045474,-500.0,0.00013863,2]
[353826149,1740081045483,-500.0,0.00013863,2]
[353826150,1740081045494,-726.14,0.00013863,2]
[353826151,1740081045504,-500.0,0.00013863,2]
[353826152,1740081045514,-500.0,0.00013863,2]
[353826153,1740081045524,-500.0,0.00013863,2]
[353826154,1740081045535,-500.0,0.00013863,2]
[353826155,1740081045545,-500.0,0.00013863,2]
[353826156,1740081045555,-500.0,0.00013863,2]
[353826157,1740081045564,-364.87954545,0.00013863,2]
[353826158,1740081045574,-500.0,0.00013863,2]
[353826159,1740081045584,-500.0,0.00013863,2]
[353826160,1740081045593,-403.24226921,0.00013863,2]
[353826161,1740081045603,-500.0,0.00013863,2]
[353826162,1740081045613,-854.98,0.00013863,2]
[353826163,1740081045623,-500.0,0.00013863,2]
[353826164,1740081045633,-518.04,0.00013863,2]
[353826165,1740081045644,-500.0,0.00013863,2]
[353826166,1740081045654,-500.0,0.00013863,2]
[353826167,1740081045665,-500.0,0.00013863,2]
[353826168,1740081045675,-500.0,0.00013863,2]
[353826169,1740081045685,-500.0,0.00013863,2]
[353826170,1740081045695,-796.66,0.00013863,2]
[353826171,1740081045705,-500.0,0.00013863,2]
[353826172,1740081045715,-576.57,0.00013863,2]
[353826173,1740081045726,-500.0,0.00013863,2]
[353826174,1740081045736,-500.0,0.00013863,2]
[353826175,1740081045745,-520.56,0.00013863,2]
[353826176,1740081045755,-500.0,0.00013863,2]
[353826177,1740081045766,-500.0,0.00013863,2]
[353826183,1740081045871,-500.0,0.00013863,2]
[353826185,1740081045896,-500.0,0.00013863,2]
[353826187,1740081045906,-500.0,0.00013863,2]
[353826188,1740081045916,-500.0,0.00013863,2]
[353826189,1740081045928,-500.0,0.00013863,2]
[353826191,1740081045938,-855.71,0.00013863,2]
[353826192,1740081045948,-500.0,0.00013863,2]
[353826193,1740081045958,-500.0,0.00013863,2]
[353826194,1740081045968,-500.0,0.00013863,2]
[353826195,1740081045979,-500.0,0.00013863,2]
[353826197,1740081045989,-653.55,0.00013863,2]
[353826199,1740081045999,-500.0,0.00013863,2]
[353826200,1740081046009,-500.0,0.00013863,2]
[353826201,1740081046019,-500.0,0.00013863,2]
[353826202,1740081046029,-500.0,0.00013863,2]
[353826203,1740081046039,-500.0,0.00013863,2]
[353826204,1740081046049,-527.25,0.00013863,2]
[353826205,1740081046059,-500.0,0.00013863,2]
[353826206,1740081046069,-526.08,0.00013863,2]
[353826207,1740081046078,-501.26296343,0.00013863,2]
[353826208,1740081046088,-500.0,0.00013863,2]
[353826209,1740081046098,-500.0,0.00013863,2]
[353826210,1740081046108,-500.0,0.00013863,2]
[353826211,1740081046117,-500.0,0.00013863,2]
[353826212,1740081046127,-500.0,0.00013863,2]
[353826213,1740081046137,-500.0,0.00013863,2]
[353826214,1740081046147,-500.0,0.00013863,2]
[353826215,1740081046157,-500.0,0.00013863,2]
[353826216,1740081046168,-500.0,0.00013863,2]
[353826217,1740081046178,-500.0,0.00013863,2]
[353826218,1740081046187,-500.0,0.00013863,2]
[353826219,1740081046196,-500.0,0.00013863,2]
[353826220,1740081046206,-500.0,0.00013863,2]
[353826221,1740081046215,-508.1135934,0.00013863,2]
[353826222,1740081046225,-500.0,0.00013863,2]
[353826223,1740081046234,-500.0,0.00013863,2]
[353826224,1740081046244,-357.16343885,0.00013863,2]
[353826225,1740081046254,-500.0,0.00013863,2]
[353826226,1740081046263,-541.85448475,0.00013863,2]
[353826227,1740081046274,-500.0,0.00013863,2]
[353826228,1740081046284,-651.0,0.00013863,2]
[353826229,1740081046293,-500.0,0.00013863,2]
[353826230,1740081046303,-500.0,0.00013863,2]
[353826231,1740081046313,-500.0,0.00013863,2]
[353826232,1740081046322,-500.0,0.00013863,2]
[353826233,1740081046332,-593.64,0.00013863,2]
[353826234,1740081046342,-500.0,0.00013863,2]
[353826235,1740081046352,-753.07,0.00013863,2]
[353826236,1740081046362,-500.0,0.00013863,2]
[353826237,1740081046371,-500.0,0.00013863,2]
[353826238,1740081046380,-13040.78,0.00013863,2]
[353826239,1740081046390,-1186.37,0.00013863,2]
[353826240,1740081046399,-34993.76,0.00013863,2]
[353826241,1740081046408,-500.0,0.00013863,2]
[353826242,1740081046418,-1017.86,0.00013863,2]
[353826243,1740081046427,-500.0,0.00013863,2]
[353826244,1740081046437,-500.0,0.00013863,2]
[353826245,1740081046446,-2077.25,0.00013863,2]
[353826246,1740081046455,-963.85,0.00013863,2]
[353826247,1740081046465,-2415.36,0.00013863,2]
[353826248,1740081046474,-1104.4,0.00013863,2]
[353826249,1740081046484,-500.0,0.00013863,2]
[353826250,1740081046493,-928.84,0.00013863,2]
[353826251,1740081046502,-500.0,0.00013863,2]
[353826252,1740081046512,-500.0,0.00013863,2]
[353826253,1740081046521,-2659.11,0.00013863,2]
[353826254,1740081046530,-504.39297638,0.00013863,2]
[353826255,1740081046539,-500.0,0.00013863,2]
[353826256,1740081046549,-501.82936904,0.00013863,2]
[353826257,1740081046558,-5902.48,0.00013863,2]
[353826258,1740081046567,-893.57,0.00013863,2]
[353826259,1740081046576,-500.0,0.00013863,2]
[353826260,1740081046585,-500.0,0.00013863,2]